[Event "Paul Kerese Mälestusfestival 2022 Välkturniir"]
[Site "Paul Kerese Mälestusfestival 2022 Kiirturniir"]
[Date "????.??.??"]
[Round "8.2"]
[White "Paikens, Reinis"]
[Black "Maiorov, Nikita"]
[Result "0-1"]
[TimeControl "3 min + 2 sek iga käigu eest"]
[BlackTitle "GM"]
[WhiteElo "1678"]
[BlackElo "2417"]

1. c4 {[%clk 00:03:02]} {[%emt 00:00:01]} e5 {[%clk 00:02:58]} {[%emt
00:00:06]} 2. Nc3 {[%clk 00:03:03]} {[%emt 00:00:01]} Nf6 {[%clk 00:02:59]} 3.
g3 {[%clk 00:03:04]} {[%emt 00:00:02]} d5 {[%clk 00:03:00]} 4. cxd5 {[%clk
00:03:05]} {[%emt 00:00:01]} Nxd5 {[%clk 00:03:01]} {[%emt 00:00:01]} 5. Bg2
{[%clk 00:03:06]} Nb6 {[%clk 00:03:02]} {[%emt 00:00:01]} 6. Nf3 {[%clk
00:03:06]} {[%emt 00:00:02]} Nc6 {[%clk 00:03:03]} 7. O-O {[%clk 00:03:07]}
{[%emt 00:00:02]} Be7 {[%clk 00:03:04]} {[%emt 00:00:01]} 8. d3 {[%clk
00:03:08]} {[%emt 00:00:01]} O-O {[%clk 00:03:04]} {[%emt 00:00:02]} 9. Bd2
{[%clk 00:03:08]} {[%emt 00:00:02]} Be6 {[%clk 00:03:02]} {[%emt 00:00:03]} 10.
Rc1 {[%clk 00:02:56]} {[%emt 00:00:14]} f6 {[%clk 00:03:02]} {[%emt 00:00:02]}
11. a3 {[%clk 00:02:57]} {[%emt 00:00:01]} a5 {[%clk 00:02:51]} {[%emt
00:00:13]} 12. Ne4 {[%clk 00:02:54]} {[%emt 00:00:05]} a4 {[%clk 00:02:50]}
{[%emt 00:00:03]} 13. Nc5 {[%clk 00:02:55]} {[%emt 00:00:02]} Bxc5 {[%clk
00:02:50]} {[%emt 00:00:01]} 14. Rxc5 {[%clk 00:02:56]} {[%emt 00:00:01]} Qe7
{[%clk 00:02:50]} {[%emt 00:00:01]} 15. Qc1 {[%clk 00:02:40]} {[%emt 00:00:18]}
Qd7 {[%clk 00:02:47]} {[%emt 00:00:05]} 16. Be3 {[%clk 00:02:07]} {[%emt
00:00:33]} Bh3 {[%clk 00:02:45]} {[%emt 00:00:06]} 17. Rc2 {[%clk 00:01:52]}
{[%emt 00:00:17]} Bxg2 {[%clk 00:02:44]} {[%emt 00:00:03]} 18. Kxg2 {[%clk
00:01:53]} {[%emt 00:00:02]} Nd5 {[%clk 00:02:43]} {[%emt 00:00:02]} 19. Bd2
{[%clk 00:01:52]} {[%emt 00:00:03]} Kh8 {[%clk 00:02:29]} {[%emt 00:00:16]} 20.
e3 {[%clk 00:01:52]} {[%emt 00:00:02]} Nde7 {[%clk 00:02:25]} {[%emt 00:00:06]}
21. d4 {[%clk 00:01:41]} {[%emt 00:00:14]} e4 {[%clk 00:02:12]} {[%emt
00:00:14]} 22. Ng1 {[%clk 00:01:42]} {[%emt 00:00:01]} Nd5 {[%clk 00:02:12]}
{[%emt 00:00:02]} 23. Ne2 {[%clk 00:01:41]} {[%emt 00:00:02]} Rf7 {[%clk
00:02:08]} {[%emt 00:00:06]} 24. Nc3 {[%clk 00:01:42]} {[%emt 00:00:02]} Nxc3
{[%clk 00:01:52]} {[%emt 00:00:18]} 25. Rxc3 {[%clk 00:01:41]} {[%emt
00:00:02]} Na5 {[%clk 00:01:36]} {[%emt 00:00:18]} 26. Qc2 {[%clk 00:01:26]}
{[%emt 00:00:17]} Nb3 {[%clk 00:01:33]} {[%emt 00:00:06]} 27. Be1 {[%clk
00:01:14]} {[%emt 00:00:14]} Re8 {[%clk 00:01:32]} {[%emt 00:00:03]} 28. Rc4
{[%clk 00:01:12]} {[%emt 00:00:05]} h6 {[%clk 00:01:09]} {[%emt 00:00:24]} 29.
Bb4 {[%clk 00:01:01]} {[%emt 00:00:13]} c6 {[%clk 00:01:03]} {[%emt 00:00:09]}
30. Rd1 {[%clk 00:00:50]} {[%emt 00:00:13]} Qd5 {[%clk 00:00:54]} {[%emt
00:00:10]} 31. Be1 {[%emt 00:00:08]} Ra8 {[%clk 00:00:52]} {[%emt 00:00:02]} 32.
Qc3 {[%clk 00:00:38]} {[%emt 00:00:11]} Re7 {[%clk 00:00:50]} {[%emt 00:00:04]}
33. Qb4 {[%clk 00:00:35]} {[%emt 00:00:04]} Rd7 {[%clk 00:00:46]} {[%emt
00:00:06]} 34. Rc2 {[%clk 00:00:25]} {[%emt 00:00:13]} c5 {[%clk 00:00:43]}
{[%emt 00:00:05]} 35. Qc4 {[%clk 00:00:19]} {[%emt 00:00:08]} Qxc4 {[%clk
00:00:36]} {[%emt 00:00:08]} 36. Rxc4 {[%clk 00:00:20]} {[%emt 00:00:01]} b5
{[%clk 00:00:38]} 37. Rc2 {[%clk 00:00:08]} {[%emt 00:00:14]} Rad8 {[%emt
00:00:06]} 38. Bc3 {[%clk 00:00:06]} {[%emt 00:00:01]} Rd5 {[%clk 00:00:28]}
{[%emt 00:00:12]} 39. Re1 {[%clk 00:00:06]} {[%emt 00:00:01]} cxd4 {[%clk
00:00:26]} {[%emt 00:00:04]} 40. Bxd4 {[%clk 00:00:07]} {[%emt 00:00:02]} Nxd4
{[%clk 00:00:24]} {[%emt 00:00:03]} 41. exd4 {[%clk 00:00:07]} {[%emt
00:00:04]} Rxd4 {[%clk 00:00:23]} {[%emt 00:00:04]} 42. Rc5 {[%clk 00:00:08]}
b4 {[%clk 00:00:23]} {[%emt 00:00:02]} 43. Ra5 {[%clk 00:00:05]} {[%emt
00:00:06]} b3 {[%clk 00:00:23]} {[%emt 00:00:02]} 44. Re3 {[%clk 00:00:03]}
{[%emt 00:00:04]} Rd2 {[%clk 00:00:24]} {[%emt 00:00:01]} 45. Rxe4 {[%emt
00:00:02]} Rxb2 {[%clk 00:00:24]} {[%emt 00:00:01]} 46. Raxa4 {[%clk 00:00:05]}
Rdd2 {[%clk 00:00:25]} {[%emt 00:00:01]} 47. Rf4 {[%clk 00:00:05]} {[%emt
00:00:02]} Rbc2 {[%clk 00:00:24]} {[%emt 00:00:02]} 48. Rab4 {[%clk 00:00:06]}
{[%emt 00:00:02]} b2 {[%clk 00:00:25]} {[%emt 00:00:01]} 49. Rf3 {[%clk
00:00:05]} {[%emt 00:00:03]} Kh7 {[%clk 00:00:23]} {[%emt 00:00:04]} 50. a4
{[%clk 00:00:06]} Rd4 {[%clk 00:00:17]} {[%emt 00:00:08]} 51. Rfb3 {[%clk
00:00:04]} {[%emt 00:00:04]} Rdd2 {[%clk 00:00:14]} {[%emt 00:00:04]} 52. Rf3
{[%clk 00:00:05]} h5 {[%clk 00:00:09]} {[%emt 00:00:07]} 53. a5 {[%clk
00:00:06]} {[%emt 00:00:01]} Rc5 {[%clk 00:00:08]} {[%emt 00:00:03]} 54. Rfb3
{[%clk 00:00:07]} {[%emt 00:00:01]} Rf5 {[%clk 00:00:09]} {[%emt 00:00:01]} 55.
Rf3 {[%clk 00:00:04]} {[%emt 00:00:05]} Rxa5 {[%clk 00:00:09]} {[%emt
00:00:01]} 56. h4 {[%clk 00:00:03]} {[%emt 00:00:03]} Rc5 {[%clk 00:00:10]}
{[%emt 00:00:01]} 57. Rfb3 {[%clk 00:00:04]} {[%emt 00:00:02]} Rf5 {[%clk
00:00:10]} {[%emt 00:00:02]} 58. Rf3 {[%clk 00:00:05]} Rxf3 {[%clk 00:00:11]}
{[%emt 00:00:02]} 59. Kxf3 {[%clk 00:00:06]} {[%emt 00:00:01]} Rc2 {[%clk
00:00:12]} 60. Rb5 {[%clk 00:00:05]} {[%emt 00:00:02]} g5 {[%clk 00:00:12]}
{[%emt 00:00:02]} 61. hxg5 {[%emt 00:00:01]} fxg5 62. Kg2 {[%clk 00:00:06]}
{[%emt 00:00:02]} g4 {[%clk 00:00:14]} {[%emt 00:00:01]} 63. Rxh5+ {[%clk
00:00:06]} {[%emt 00:00:02]} Kg6 {[%clk 00:00:15]} 64. Rb5 {[%clk 00:00:08]}
Kf6 {[%clk 00:00:16]} {[%emt 00:00:02]} 65. Rb7 {[%clk 00:00:04]} {[%emt
00:00:06]} Ke5 {[%clk 00:00:17]} {[%emt 00:00:01]} 66. Rb5+ {[%clk 00:00:05]}
{[%emt 00:00:01]} Kd4 {[%clk 00:00:17]} {[%emt 00:00:02]} 67. Rb6 {[%clk
00:00:03]} {[%emt 00:00:02]} Kd3 {[%clk 00:00:17]} {[%emt 00:00:03]} 68. Rb7
{[%clk 00:00:04]} {[%emt 00:00:02]} Kd2 {[%clk 00:00:17]} {[%emt 00:00:02]} 69.
Rb6 {[%clk 00:00:03]} {[%emt 00:00:03]} Kc1 {[%clk 00:00:18]} {[%emt 00:00:01]}
70. Rb4 {[%clk 00:00:03]} {[%emt 00:00:02]} b1=Q {[%clk 00:00:17]} {[%emt
00:00:02]} 71. Rxg4 {[%clk 00:00:04]} {[%emt 00:00:01]} Qb7+ {[%clk 00:00:17]}
{[%emt 00:00:02]} 72. Kg1 {[%clk 00:00:03]} {[%emt 00:00:03]} Qb6 {[%clk
00:00:15]} {[%emt 00:00:04]} 73. Rf4 {[%clk 00:00:03]} {[%emt 00:00:03]} Kb1
{[%clk 00:00:14]} {[%emt 00:00:02]} 74. g4 {[%clk 00:00:04]} {[%emt 00:00:02]}
Rc1 {[%clk 00:00:15]} {[%emt 00:00:01]} 75. Kg2 {[%clk 00:00:05]} Qc6+ {[%clk
00:00:16]} 76. f3 {[%clk 00:00:03]} {[%emt 00:00:05]} Rc2+ {[%clk 00:00:16]}
{[%emt 00:00:01]} 77. Kg3 {[%clk 00:00:05]} Qc7 {[%clk 00:00:18]} 78. Kg2
{[%emt 00:00:24]} 0-1

[Event "Paul Kerese Mälestusfestival 2022 Välkturniir"]
[Site "Paul Kerese Mälestusfestival 2022 Kiirturniir"]
[Date "????.??.??"]
[Round "8.3"]
[White "Bernotas, Arturs"]
[Black "Chukavin, Kirill"]
[Result "1-0"]
[TimeControl "3 min + 2 sek iga käigu eest"]
[WhiteTitle "FM"]
[BlackTitle "FM"]
[WhiteElo "2382"]
[BlackElo "2280"]

1. e4 {[%clk 00:03:02]} {[%emt 00:00:02]} c5 {[%clk 00:03:03]} {[%emt
00:00:02]} 2. Nf3 {[%clk 00:03:02]} {[%emt 00:00:02]} e6 {[%clk 00:02:49]}
{[%emt 00:00:16]} 3. c3 {[%clk 00:02:59]} {[%emt 00:00:05]} d5 {[%clk
00:02:49]} {[%emt 00:00:01]} 4. exd5 {[%clk 00:03:00]} Qxd5 {[%clk 00:02:51]} 5.
d4 {[%clk 00:03:00]} {[%emt 00:00:02]} Nf6 {[%clk 00:02:51]} {[%emt 00:00:01]}
6. Be2 {[%clk 00:03:00]} {[%emt 00:00:03]} Be7 {[%clk 00:02:51]} {[%emt
00:00:03]} 7. Na3 {[%clk 00:03:00]} Nc6 {[%clk 00:02:44]} {[%emt 00:00:09]} 8.
Nb5 {[%clk 00:02:56]} {[%emt 00:00:07]} Qd8 {[%clk 00:02:43]} {[%emt 00:00:03]}
9. dxc5 {[%clk 00:02:54]} {[%emt 00:00:04]} Bxc5 {[%clk 00:02:10]} {[%emt
00:00:35]} 10. Qxd8+ {[%clk 00:02:50]} {[%emt 00:00:06]} Kxd8 {[%clk 00:02:10]}
{[%emt 00:00:02]} 11. Bf4 {[%clk 00:02:48]} {[%emt 00:00:04]} Nd5 {[%clk
00:01:52]} {[%emt 00:00:21]} 12. Rd1 {[%clk 00:02:46]} {[%emt 00:00:04]} Ke7
{[%clk 00:01:48]} {[%emt 00:00:06]} 13. Bg3 {[%clk 00:02:13]} {[%emt 00:00:35]}
a6 {[%clk 00:01:47]} {[%emt 00:00:04]} 14. Nbd4 {[%clk 00:02:11]} {[%emt
00:00:03]} Nxd4 {[%clk 00:01:38]} {[%emt 00:00:11]} 15. Nxd4 {[%clk 00:02:12]}
{[%emt 00:00:01]} Rd8 {[%clk 00:01:36]} {[%emt 00:00:05]} 16. Bf3 {[%clk
00:02:05]} {[%emt 00:00:08]} Bd7 {[%clk 00:00:36]} {[%emt 00:01:02]} 17. Nb3
{[%clk 00:01:54]} {[%emt 00:00:13]} Bb6 {[%clk 00:00:25]} {[%emt 00:00:13]} 18.
c4 {[%clk 00:01:44]} {[%emt 00:00:12]} Nf6 {[%clk 00:00:18]} {[%emt 00:00:09]}
19. c5 {[%clk 00:01:38]} {[%emt 00:00:08]} Ba7 {[%clk 00:00:08]} {[%emt
00:00:12]} 20. Bd6+ {[%clk 00:01:38]} {[%emt 00:00:01]} Ke8 {[%clk 00:00:09]}
{[%emt 00:00:01]} 21. Bxb7 {[%clk 00:01:38]} {[%emt 00:00:02]} Bb5 {[%clk
00:00:07]} {[%emt 00:00:04]} 22. Nd4 {[%clk 00:01:19]} {[%emt 00:00:21]} Bc4
{[%clk 00:00:06]} {[%emt 00:00:04]} 23. Bc6+ {[%clk 00:00:58]} {[%emt
00:00:23]} Nd7 {[%clk 00:00:07]} 24. Bxa8 {[%clk 00:00:58]} {[%emt 00:00:02]}
Rxa8 {[%clk 00:00:09]} 25. c6 {[%clk 00:00:43]} {[%emt 00:00:17]} Nf6 {[%clk
00:00:09]} {[%emt 00:00:03]} 26. b3 {[%clk 00:00:39]} {[%emt 00:00:06]} Bd5
{[%clk 00:00:10]} 27. O-O {[%emt 00:00:02]} Ne4 28. Bg3 {[%clk 00:00:36]}
{[%emt 00:00:04]} Nc3 {[%clk 00:00:13]} 29. Rd2 {[%clk 00:00:36]} {[%emt
00:00:02]} Bxd4 {[%clk 00:00:14]} {[%emt 00:00:01]} 30. c7 {[%clk 00:00:29]}
{[%emt 00:00:08]} Rc8 {[%clk 00:00:13]} {[%emt 00:00:03]} 31. Rc1 {[%clk
00:00:29]} {[%emt 00:00:02]} Bf6 {[%clk 00:00:13]} {[%emt 00:00:02]} 32. f3
{[%clk 00:00:28]} {[%emt 00:00:04]} Nb5 {[%clk 00:00:11]} {[%emt 00:00:04]} 33.
a4 {[%clk 00:00:28]} {[%emt 00:00:02]} Nd4 {[%clk 00:00:11]} {[%emt 00:00:02]}
34. Rb1 {[%clk 00:00:25]} {[%emt 00:00:05]} Kd7 {[%clk 00:00:09]} {[%emt
00:00:04]} 35. b4 {[%clk 00:00:25]} {[%emt 00:00:02]} e5 {[%clk 00:00:07]}
{[%emt 00:00:04]} 36. b5 {[%clk 00:00:25]} {[%emt 00:00:02]} axb5 {[%clk
00:00:07]} {[%emt 00:00:01]} 37. axb5 {[%clk 00:00:25]} {[%emt 00:00:02]} Rxc7
{[%emt 00:00:01]} 38. Re1 {[%clk 00:00:19]} {[%emt 00:00:08]} Ke6 {[%clk
00:00:04]} {[%emt 00:00:06]} 39. Rxd4 {[%clk 00:00:20]} {[%emt 00:00:02]} Rb7
{[%clk 00:00:04]} {[%emt 00:00:01]} 40. Rb4 {[%clk 00:00:20]} Kf5 {[%emt
00:00:03]} 41. b6 {[%clk 00:00:18]} {[%emt 00:00:04]} h5 {[%clk 00:00:05]} 42.
h4 {[%clk 00:00:19]} {[%emt 00:00:01]} g6 {[%clk 00:00:05]} {[%emt 00:00:03]}
43. Rc1 {[%clk 00:00:19]} {[%emt 00:00:02]} Be7 {[%clk 00:00:06]} {[%emt
00:00:01]} 44. Rbb1 {[%clk 00:00:19]} {[%emt 00:00:02]} 1-0

[Event "Paul Kerese Mälestusfestival 2022 Välkturniir"]
[Site "Paul Kerese Mälestusfestival 2022 Kiirturniir"]
[Date "????.??.??"]
[Round "8.4"]
[White "Agafonov, Yuri"]
[Black "Petrovskis, Olegs"]
[Result "1-0"]
[TimeControl "3 min + 2 sek iga käigu eest"]
[WhiteElo "1913"]
[BlackElo "1984"]

1. d4 {[%clk 00:03:03]} d5 {[%clk 00:03:04]} {[%emt 00:00:01]} 2. Bg5 {[%clk
00:03:04]} {[%emt 00:00:01]} c6 {[%clk 00:03:03]} {[%emt 00:00:03]} 3. e3
{[%clk 00:03:03]} {[%emt 00:00:03]} Qb6 {[%clk 00:03:04]} {[%emt 00:00:01]} 4.
Qc1 {[%clk 00:03:03]} {[%emt 00:00:01]} Nf6 {[%clk 00:02:52]} {[%emt 00:00:14]}
5. Bd3 {[%clk 00:03:03]} {[%emt 00:00:02]} Nbd7 {[%clk 00:02:45]} {[%emt
00:00:10]} 6. Nf3 {[%clk 00:03:01]} {[%emt 00:00:04]} h6 {[%clk 00:02:41]}
{[%emt 00:00:06]} 7. Bh4 {[%clk 00:03:02]} e6 {[%clk 00:02:37]} {[%emt
00:00:06]} 8. O-O {[%clk 00:02:59]} {[%emt 00:00:05]} Bd6 {[%clk 00:02:34]}
{[%emt 00:00:04]} 9. c4 {[%clk 00:02:59]} {[%emt 00:00:02]} dxc4 {[%clk
00:02:30]} {[%emt 00:00:06]} 10. Bxc4 {[%clk 00:03:00]} {[%emt 00:00:01]} O-O
{[%clk 00:02:20]} {[%emt 00:00:13]} 11. Nc3 {[%clk 00:03:00]} {[%emt 00:00:01]}
Nd5 {[%clk 00:02:12]} {[%emt 00:00:09]} 12. e4 {[%clk 00:02:44]} {[%emt
00:00:18]} Nxc3 {[%clk 00:02:10]} {[%emt 00:00:04]} 13. bxc3 {[%clk 00:02:45]}
{[%emt 00:00:01]} e5 {[%clk 00:02:06]} {[%emt 00:00:07]} 14. Rd1 {[%clk
00:02:36]} {[%emt 00:00:10]} Qc7 {[%clk 00:02:04]} {[%emt 00:00:04]} 15. Rb1
{[%clk 00:02:23]} {[%emt 00:00:15]} Nb6 {[%clk 00:01:50]} {[%emt 00:00:16]} 16.
Bf1 {[%clk 00:02:23]} {[%emt 00:00:02]} Bg4 {[%clk 00:01:50]} {[%emt 00:00:01]}
17. h3 {[%clk 00:02:21]} {[%emt 00:00:03]} Bxf3 {[%clk 00:01:31]} {[%emt
00:00:22]} 1-0

[Event "Paul Kerese Mälestusfestival 2022 Välkturniir"]
[Site "Paul Kerese Mälestusfestival 2022 Kiirturniir"]
[Date "????.??.??"]
[Round "8.5"]
[White "Olde, Margareth"]
[Black "Protassov, Vlad"]
[Result "1/2-1/2"]
[TimeControl "3 min + 2 sek iga käigu eest"]
[WhiteTitle "WIM"]
[WhiteElo "1971"]
[BlackElo "1816"]

1. d4 {[%clk 00:03:04]} {[%emt 00:06:15]} Nf6 {[%clk 00:03:03]} 2. Nf3 {[%clk
00:03:05]} e6 {[%clk 00:03:04]} 3. g3 {[%clk 00:03:06]} {[%emt 00:00:01]} b6
{[%clk 00:03:05]} {[%emt 00:00:01]} 4. Bg2 {[%clk 00:03:07]} Bb7 {[%clk
00:03:06]} {[%emt 00:00:01]} 5. O-O {[%clk 00:03:08]} {[%emt 00:00:01]} c5
{[%clk 00:03:06]} {[%emt 00:00:01]} 6. c4 {[%clk 00:03:08]} {[%emt 00:00:02]}
cxd4 {[%clk 00:03:06]} {[%emt 00:00:02]} 7. Qxd4 {[%clk 00:03:10]} Nc6 {[%clk
00:02:55]} {[%emt 00:00:12]} 8. Qd1 {[%clk 00:03:11]} d6 {[%clk 00:02:53]}
{[%emt 00:00:05]} 9. Nc3 {[%clk 00:03:12]} Be7 {[%clk 00:02:52]} {[%emt
00:00:04]} 10. b3 {[%clk 00:03:02]} {[%emt 00:00:13]} O-O {[%clk 00:02:51]}
{[%emt 00:00:02]} 11. Bb2 {[%clk 00:03:04]} a6 {[%clk 00:02:47]} {[%emt
00:00:07]} 12. Rc1 {[%clk 00:03:03]} {[%emt 00:00:02]} Rc8 {[%clk 00:02:44]}
{[%emt 00:00:05]} 13. Qd2 {[%clk 00:03:03]} {[%emt 00:00:03]} Qc7 {[%clk
00:02:42]} {[%emt 00:00:04]} 14. Nd5 {[%clk 00:02:46]} {[%emt 00:00:19]} exd5
{[%clk 00:02:33]} {[%emt 00:00:10]} 15. cxd5 {[%clk 00:02:47]} Qd7 {[%clk
00:02:22]} {[%emt 00:00:13]} 16. dxc6 {[%clk 00:02:47]} {[%emt 00:00:02]} Bxc6
{[%emt 00:00:12]} 17. Nd4 {[%emt 00:00:06]} Bxg2 {[%clk 00:02:01]} {[%emt
00:00:05]} 18. Kxg2 {[%clk 00:02:49]} Rxc1 {[%clk 00:01:41]} {[%emt 00:00:23]}
19. Rxc1 {[%clk 00:02:49]} {[%emt 00:00:01]} Rc8 {[%clk 00:01:42]} 20. Qd3
{[%clk 00:02:46]} {[%emt 00:00:06]} Qb7+ {[%clk 00:01:33]} {[%emt 00:00:10]} 21.
Kg1 {[%clk 00:02:46]} {[%emt 00:00:02]} Rxc1+ {[%clk 00:01:16]} {[%emt
00:00:20]} 22. Bxc1 {[%clk 00:02:47]} Qe4 {[%clk 00:00:54]} {[%emt 00:00:23]}
23. Nf5 {[%clk 00:02:48]} {[%emt 00:00:01]} Qxd3 {[%clk 00:00:45]} {[%emt
00:00:11]} 24. exd3 {[%clk 00:02:49]} {[%emt 00:00:01]} Kf8 {[%clk 00:00:42]}
{[%emt 00:00:05]} 25. Ba3 {[%clk 00:02:24]} {[%emt 00:00:28]} Ne8 {[%clk
00:00:29]} {[%emt 00:00:15]} 26. Ne3 {[%clk 00:02:25]} b5 {[%clk 00:00:13]}
{[%emt 00:00:19]} 27. Bb4 {[%clk 00:02:16]} {[%emt 00:00:11]} g6 {[%clk
00:00:11]} {[%emt 00:00:04]} 28. Nd5 {[%clk 00:02:10]} {[%emt 00:00:08]} f5
{[%clk 00:00:11]} {[%emt 00:00:02]} 29. f4 {[%clk 00:02:02]} {[%emt 00:00:09]}
Kf7 {[%clk 00:00:13]} 30. Kf2 {[%clk 00:02:02]} {[%emt 00:00:03]} Ke6 {[%clk
00:00:06]} {[%emt 00:00:09]} 31. Nc3 {[%clk 00:01:43]} {[%emt 00:00:21]} Bf6
{[%clk 00:00:07]} {[%emt 00:00:01]} 32. Nd1 {[%clk 00:01:23]} {[%emt 00:00:21]}
Nc7 {[%clk 00:00:08]} {[%emt 00:00:01]} 33. a4 {[%clk 00:01:21]} {[%emt
00:00:04]} Bd4+ {[%clk 00:00:09]} {[%emt 00:00:01]} 34. Ke2 {[%clk 00:01:20]}
{[%emt 00:00:02]} Nd5 {[%clk 00:00:09]} {[%emt 00:00:03]} 35. Bd2 {[%clk
00:01:18]} {[%emt 00:00:04]} Nb6 {[%clk 00:00:07]} {[%emt 00:00:04]} 36. axb5
{[%clk 00:01:18]} {[%emt 00:00:02]} axb5 {[%clk 00:00:08]} 37. Bc3 {[%clk
00:01:09]} {[%emt 00:00:11]} Kd5 {[%clk 00:00:08]} {[%emt 00:00:03]} 38. Ba5
{[%clk 00:00:55]} {[%emt 00:00:16]} Nd7 {[%clk 00:00:09]} {[%emt 00:00:01]} 39.
Ne3+ {[%clk 00:00:43]} {[%emt 00:00:13]} Bxe3 {[%clk 00:00:09]} {[%emt
00:00:03]} 40. Kxe3 {[%clk 00:00:44]} Nc5 {[%clk 00:00:09]} {[%emt 00:00:02]}
41. b4 {[%clk 00:00:41]} {[%emt 00:00:05]} Ne6 {[%emt 00:00:29]} 42. Bb6 {[%clk
00:00:38]} {[%emt 00:00:07]} Kc6 {[%clk 00:00:05]} 43. Ba7 {[%clk 00:00:34]}
{[%emt 00:00:06]} Kd5 {[%clk 00:00:05]} {[%emt 00:00:01]} 44. h3 {[%clk
00:00:33]} {[%emt 00:00:03]} h5 {[%clk 00:00:06]} {[%emt 00:00:02]} 45. Bb6
{[%clk 00:00:28]} {[%emt 00:00:07]} Kc6 {[%clk 00:00:07]} 46. Bd4 {[%clk
00:00:27]} {[%emt 00:00:03]} Kd5 {[%clk 00:00:07]} {[%emt 00:00:02]} 47. Bc3
{[%clk 00:00:26]} {[%emt 00:00:03]} Nd8 {[%clk 00:00:08]} {[%emt 00:00:01]} 48.
Kf3 {[%clk 00:00:24]} {[%emt 00:00:04]} Nc6 {[%clk 00:00:09]} {[%emt 00:00:01]}
49. g4 {[%clk 00:00:22]} {[%emt 00:00:05]} hxg4+ {[%emt 00:00:02]} 50. hxg4
Nd4+ {[%clk 00:00:09]} {[%emt 00:00:01]} 51. Ke3 {[%clk 00:00:17]} {[%emt
00:00:08]} Nc6 {[%clk 00:00:09]} {[%emt 00:00:04]} 52. gxf5 {[%clk 00:00:16]}
{[%emt 00:00:03]} gxf5 {[%clk 00:00:10]} {[%emt 00:00:01]} 53. Be1 {[%clk
00:00:06]} {[%emt 00:00:11]} Nd4 {[%clk 00:00:11]} {[%emt 00:00:01]} 54. Bd2
{[%clk 00:00:07]} Nc6 {[%clk 00:00:09]} {[%emt 00:00:04]} 55. Bc3 {[%clk
00:00:09]} Ke6 {[%clk 00:00:08]} {[%emt 00:00:03]} 56. Kf3 {[%clk 00:00:08]}
{[%emt 00:00:03]} Kd5 {[%clk 00:00:08]} {[%emt 00:00:02]} 57. Ke3 {[%clk
00:00:08]} {[%emt 00:00:02]} Ke6 {[%clk 00:00:08]} {[%emt 00:00:02]} 58. Kf3
{[%clk 00:00:07]} {[%emt 00:00:03]} Kd5 {[%clk 00:00:09]} 59. Ke3 {[%clk
00:00:08]} Ke6 {[%clk 00:00:10]} {[%emt 00:00:01]} 60. Ke4 {[%clk 00:00:06]}
{[%emt 00:00:02]} Ke5+ {[%clk 00:03:02]} 1/2-1/2